[Event "Live Chess"]
[Site "Chess.com"]
[Date "2024.06.01"]
[Round "-"]
[White "gobbles19"]
[Black "MaksymYurii"]
[Result "1-0"]
[WhiteElo "2245"]
[BlackElo "933"]
[TimeControl "300"]
[EndTime "12:43:14 PDT"]
[Termination "gobbles19 won on time"]

1. e4 {[%clk 0:04:57.4]} 1... e5 {[%clk 0:04:59]} 2. d4 {[%clk 0:04:55.4]} 2...
exd4 {[%clk 0:04:56.6]} 3. c3 {[%clk 0:04:54.9]} 3... Nc6 {[%clk 0:04:51.8]} 4.
Nf3 {[%clk 0:04:52.5]} 4... Nf6 {[%clk 0:04:50.9]} 5. e5 {[%clk 0:04:44.8]} 5...
Qe7 {[%clk 0:04:43.1]} 6. cxd4 {[%clk 0:04:43.5]} 6... Qb4+ {[%clk 0:04:30]} 7.
Nc3 {[%clk 0:04:39.3]} 7... Nd5 {[%clk 0:04:22.9]} 8. Bd2 {[%clk 0:04:34.4]}
8... Nxc3 {[%clk 0:04:19.2]} 9. Bxc3 {[%clk 0:04:32.5]} 9... Qe7 {[%clk
0:04:13.9]} 10. Be2 {[%clk 0:04:25.1]} 10... d6 {[%clk 0:04:13.1]} 11. O-O
{[%clk 0:04:14.9]} 11... dxe5 {[%clk 0:04:10.9]} 12. dxe5 {[%clk 0:04:13.7]}
12... Be6 {[%clk 0:04:07.7]} 13. a3 {[%clk 0:04:03.2]} 13... Rd8 {[%clk
0:04:03.2]} 14. Qa4 {[%clk 0:03:58.4]} 14... a6 {[%clk 0:03:58.7]} 15. Bxa6
{[%clk 0:03:55.9]} 15... Bd7 {[%clk 0:03:53.3]} 16. Bb5 {[%clk 0:03:53.4]} 16...
g6 {[%clk 0:03:32.8]} 17. e6 {[%clk 0:03:47.9]} 17... fxe6 {[%clk 0:03:28.5]}
18. Bxh8 {[%clk 0:03:46.5]} 18... Bg7 {[%clk 0:03:17.9]} 19. Bxg7 {[%clk
0:03:44.1]} 19... Qxg7 {[%clk 0:03:17.8]} 20. Rad1 {[%clk 0:03:34.7]} 20... g5
{[%clk 0:03:13.5]} 21. Rfe1 {[%clk 0:03:30.7]} 21... g4 {[%clk 0:03:09.3]} 22.
Nd2 {[%clk 0:03:02.3]} 22... Nd4 {[%clk 0:02:49.3]} 23. Bxd7+ {[%clk 0:02:56.4]}
23... Qxd7 {[%clk 0:02:31.6]} 24. Qxd7+ {[%clk 0:02:53.7]} 24... Rxd7 {[%clk
0:02:30.7]} 25. Kf1 {[%clk 0:02:46.7]} 25... Kf7 {[%clk 0:02:23.5]} 26. Ne4
{[%clk 0:02:44.2]} 26... h6 {[%clk 0:02:18]} 27. Rd3 {[%clk 0:02:38.5]} 27...
Ke7 {[%clk 0:02:00.9]} 28. Red1 {[%clk 0:02:36.5]} 28... e5 {[%clk 0:01:53.2]}
29. f4 {[%clk 0:02:29.1]} 29... Rd8 {[%clk 0:01:19.5]} 30. g3 {[%clk 0:02:16.8]}
30... Rf8 {[%clk 0:01:11.4]} 31. Rxd4 {[%clk 0:02:07.3]} 31... exd4 {[%clk
0:01:03.2]} 32. Rxd4 {[%clk 0:02:07.2]} 32... Rf6 {[%clk 0:00:53.9]} 33. b4
{[%clk 0:02:01.6]} 33... Ra6 {[%clk 0:00:50.7]} 34. Rd3 {[%clk 0:01:57.1]} 34...
Ra4 {[%clk 0:00:46.6]} 35. Nc5 {[%clk 0:01:55.5]} 35... Ra8 {[%clk 0:00:32.9]}
36. Rd7+ {[%clk 0:01:53]} 36... Kf6 {[%clk 0:00:28.4]} 37. Rxc7 {[%clk
0:01:51.3]} 37... Rxa3 {[%clk 0:00:26.2]} 38. Ne4+ {[%clk 0:01:39.5]} 38... Kf5
{[%clk 0:00:23.7]} 39. Nf2 {[%clk 0:01:36.9]} 39... Rb3 {[%clk 0:00:18.4]} 40.
Rxb7 {[%clk 0:01:35.7]} 40... Rb1+ {[%clk 0:00:17.1]} 41. Ke2 {[%clk 0:01:33.2]}
41... Rb2+ {[%clk 0:00:14.6]} 42. Ke3 {[%clk 0:01:32.4]} 42... Rb3+ {[%clk
0:00:13.2]} 43. Nd3 {[%clk 0:01:31.6]} 43... Ke6 {[%clk 0:00:09.9]} 44. Rh7
{[%clk 0:01:29.6]} 44... Kd5 {[%clk 0:00:08.4]} 45. Rxh6 {[%clk 0:01:28.6]}
45... Kc4 {[%clk 0:00:06.9]} 46. Rd6 {[%clk 0:01:26.6]} 46... Kc3 {[%clk
0:00:03.5]} 47. f5 {[%clk 0:01:21.5]} 47... Kc2 {[%clk 0:00:00.9]} 48. f6 {[%clk
0:01:20.5]} 1-0

[Event "Live Chess"]
[Site "Chess.com"]
[Date "2024.06.01"]
[Round "-"]
[White "Queensandpawns"]
[Black "gunslinger222"]
[Result "1/2-1/2"]
[WhiteElo "2382"]
[BlackElo "2250"]
[TimeControl "300"]
[EndTime "12:43:17 PDT"]
[Termination "Game drawn by agreement"]

1. e4 {[%clk 0:04:58.4]} 1... e6 {[%clk 0:04:59]} 2. d4 {[%clk 0:04:57.2]} 2...
d5 {[%clk 0:04:58.5]} 3. Nd2 {[%clk 0:04:57.1]} 3... c5 {[%clk 0:04:56.9]} 4.
dxc5 {[%clk 0:04:54.8]} 4... Bxc5 {[%clk 0:04:54]} 5. exd5 {[%clk 0:04:54.7]}
5... exd5 {[%clk 0:04:52.1]} 6. Ngf3 {[%clk 0:04:54.6]} 6... Nc6 {[%clk
0:04:49.4]} 7. Bd3 {[%clk 0:04:54.5]} 7... Qe7+ {[%clk 0:04:43.6]} 8. Qe2 {[%clk
0:04:51.4]} 8... Nb4 {[%clk 0:04:26.4]} 9. Qxe7+ {[%clk 0:04:41]} 9... Nxe7
{[%clk 0:04:24.7]} 10. O-O {[%clk 0:04:40.9]} 10... Nxd3 {[%clk 0:04:22.8]} 11.
cxd3 {[%clk 0:04:40.8]} 11... Bf5 {[%clk 0:04:17.7]} 12. Nb3 {[%clk 0:04:37.4]}
12... Bb6 {[%clk 0:04:08]} 13. Rd1 {[%clk 0:04:35.5]} 13... Bg4 {[%clk
0:03:54.1]} 14. Be3 {[%clk 0:04:33.7]} 14... Bxf3 {[%clk 0:03:48.7]} 15. gxf3
{[%clk 0:04:32.2]} 15... h5 {[%clk 0:03:42.1]} 16. Bxb6 {[%clk 0:04:28.6]} 16...
axb6 {[%clk 0:03:41.2]} 17. Re1 {[%clk 0:04:28.5]} 17... Kd7 {[%clk 0:03:39.8]}
18. Re5 {[%clk 0:04:26.2]} 18... f6 {[%clk 0:03:32.7]} 19. Re2 {[%clk
0:04:21.9]} 19... Nf5 {[%clk 0:03:29.4]} 20. a3 {[%clk 0:04:20.3]} 20... Rac8
{[%clk 0:03:24.1]} 21. Rae1 {[%clk 0:04:18.7]} 21... Rc6 {[%clk 0:03:16.2]} 22.
Kg2 {[%clk 0:04:09.4]} 22... h4 {[%clk 0:03:14.9]} 23. Kh3 {[%clk 0:04:07.5]}
1/2-1/2

[Event "Live Chess"]
[Site "Chess.com"]
[Date "2024.06.01"]
[Round "-"]
[White "wadsy27"]
[Black "koekoekoe"]
[Result "1-0"]
[WhiteElo "2562"]
[BlackElo "2058"]
[TimeControl "300"]
[EndTime "12:43:20 PDT"]
[Termination "wadsy27 won by resignation"]

1. c4 {[%clk 0:04:58.6]} 1... d5 {[%clk 0:04:59.9]} 2. cxd5 {[%clk 0:04:56.7]}
2... Qxd5 {[%clk 0:04:59.8]} 3. Nc3 {[%clk 0:04:56.2]} 3... Qa5 {[%clk
0:04:59.3]} 4. d4 {[%clk 0:04:55.7]} 4... Nf6 {[%clk 0:04:58.7]} 5. Bd2 {[%clk
0:04:55.1]} 5... c6 {[%clk 0:04:58]} 6. e4 {[%clk 0:04:54.4]} 6... Bg4 {[%clk
0:04:55.9]} 7. f3 {[%clk 0:04:45.7]} 7... Bh5 {[%clk 0:04:54.3]} 8. Bc4 {[%clk
0:04:34.9]} 8... e6 {[%clk 0:04:52]} 9. Nh3 {[%clk 0:04:33.5]} 9... Nbd7 {[%clk
0:04:50]} 10. Nf4 {[%clk 0:04:26.3]} 10... Bg6 {[%clk 0:04:48.1]} 11. Qb3 {[%clk
0:04:14]} 11... Qb6 {[%clk 0:04:45]} 12. Nxg6 {[%clk 0:04:10.5]} 12... Qxb3
{[%clk 0:04:34.9]} 13. Bxb3 {[%clk 0:04:09.3]} 13... hxg6 {[%clk 0:04:32.9]} 14.
O-O-O {[%clk 0:04:08.8]} 14... O-O-O {[%clk 0:04:29.8]} 15. Be3 {[%clk
0:04:07.2]} 15... Nb6 {[%clk 0:04:25.7]} 16. Kb1 {[%clk 0:04:06.4]} 16... Bb4
{[%clk 0:04:17]} 17. a3 {[%clk 0:04:05]} 17... Be7 {[%clk 0:04:12.9]} 18. h3
{[%clk 0:03:54]} 18... Rd7 {[%clk 0:03:44.7]} 19. Rc1 {[%clk 0:03:32.6]} 19...
Kb8 {[%clk 0:03:36.9]} 20. a4 {[%clk 0:03:28.9]} 20... Rhd8 {[%clk 0:03:28.6]}
21. a5 {[%clk 0:03:28.1]} 21... Nc8 {[%clk 0:03:24.8]} 22. d5 {[%clk 0:03:22.7]}
22... exd5 {[%clk 0:03:19.8]} 23. exd5 {[%clk 0:03:21.7]} 23... cxd5 {[%clk
0:03:13.9]} 24. Ba4 {[%clk 0:03:17.9]} 24... Rc7 {[%clk 0:03:05.8]} 25. Nb5
{[%clk 0:03:15.6]} 25... Rxc1+ {[%clk 0:03:00]} 26. Rxc1 {[%clk 0:03:15.5]}
26... Nd6 {[%clk 0:02:32.9]} 27. Bxa7+ {[%clk 0:03:11.5]} 27... Ka8 {[%clk
0:02:31.3]} 28. Bb6 {[%clk 0:03:09.4]} 28... Rc8 {[%clk 0:02:23.9]} 29. Nc7+
{[%clk 0:02:54.3]} 29... Kb8 {[%clk 0:02:21.1]} 30. Bb3 {[%clk 0:02:53.3]} 30...
d4 {[%clk 0:01:53.1]} 31. Nd5 {[%clk 0:02:44.7]} 31... Nxd5 {[%clk 0:01:38.5]}
32. Bxd5 {[%clk 0:02:43.9]} 32... Bf6 {[%clk 0:01:32.9]} 33. Rxc8+ {[%clk
0:02:38.4]} 33... Kxc8 {[%clk 0:01:32.8]} 34. Kc2 {[%clk 0:02:36.6]} 34... Kd7
{[%clk 0:01:16.7]} 35. Kd3 {[%clk 0:02:35.4]} 35... Nf5 {[%clk 0:01:09.9]} 36.
Bxf7 {[%clk 0:02:34]} 36... Nh4 {[%clk 0:01:05.5]} 37. Bxd4 {[%clk 0:02:32.2]}
37... Nxg2 {[%clk 0:01:02.6]} 38. Bxg6 {[%clk 0:02:28.4]} 38... Nf4+ {[%clk
0:00:59.9]} 39. Ke4 {[%clk 0:02:27.9]} 39... Nxg6 {[%clk 0:00:58.9]} 40. Bxf6
{[%clk 0:02:26.2]} 40... gxf6 {[%clk 0:00:58]} 41. Kf5 {[%clk 0:02:25.7]} 41...
Ne5 {[%clk 0:00:54.9]} 42. f4 {[%clk 0:02:22.8]} 42... Nd3 {[%clk 0:00:43.7]}
43. b3 {[%clk 0:02:21.3]} 43... Ke7 {[%clk 0:00:42.6]} 44. h4 {[%clk 0:02:19.6]}
44... Kf7 {[%clk 0:00:39.1]} 45. h5 {[%clk 0:02:18.8]} 45... Nc5 {[%clk
0:00:35.9]} 46. b4 {[%clk 0:02:17.6]} 46... Nd3 {[%clk 0:00:34.8]} 47. b5 {[%clk
0:02:15.8]} 47... Nc5 {[%clk 0:00:26.2]} 48. h6 {[%clk 0:02:15]} 48... Nd7
{[%clk 0:00:07]} 49. a6 {[%clk 0:02:12.4]} 49... bxa6 {[%clk 0:00:06.4]} 50.
bxa6 {[%clk 0:02:11.1]} 50... Nb6 {[%clk 0:00:06.3]} 51. a7 {[%clk 0:02:10.5]}
51... Na8 {[%clk 0:00:05.4]} 52. h7 {[%clk 0:02:08.4]} 52... Kg7 {[%clk
0:00:04.8]} 53. h8=Q+ {[%clk 0:02:06.6]} 53... Kxh8 {[%clk 0:00:04]} 54. Kxf6
{[%clk 0:02:06.5]} 54... Kg8 {[%clk 0:00:03.9]} 55. Ke6 {[%clk 0:02:06.2]} 55...
Kf8 {[%clk 0:00:03.4]} 56. Kd7 {[%clk 0:02:05.8]} 56... Nb6+ {[%clk 0:00:02.7]}
57. Kc6 {[%clk 0:02:05.1]} 57... Na8 {[%clk 0:00:01.9]} 58. Kb7 {[%clk
0:02:04.7]} 58... Ke7 {[%clk 0:00:01.2]} 59. Kxa8 {[%clk 0:02:04.3]} 59... Kd8
{[%clk 0:00:01.1]} 60. Kb7 {[%clk 0:02:04.1]} 1-0

[Event "Live Chess"]
[Site "Chess.com"]
[Date "2024.06.01"]
[Round "-"]
[White "ShanthamGrarks"]
[Black "Eva3337"]
[Result "1-0"]
[WhiteElo "1913"]
[BlackElo "1156"]
[TimeControl "300"]
[EndTime "12:43:25 PDT"]
[Termination "ShanthamGrarks won by checkmate"]

1. d4 {[%clk 0:04:57.2]} 1... d5 {[%clk 0:04:58.4]} 2. Nc3 {[%clk 0:04:53.4]}
2... e6 {[%clk 0:04:56.9]} 3. Bf4 {[%clk 0:04:51.4]} 3... Bb4 {[%clk 0:04:54.9]}
4. e3 {[%clk 0:04:50.6]} 4... Nf6 {[%clk 0:04:53.6]} 5. a3 {[%clk 0:04:48.5]}
5... Ba5 {[%clk 0:04:51.8]} 6. b4 {[%clk 0:04:47.2]} 6... Bb6 {[%clk 0:04:50.5]}
7. Bd3 {[%clk 0:04:46.6]} 7... a6 {[%clk 0:04:48.8]} 8. Nf3 {[%clk 0:04:44.3]}
8... a5 {[%clk 0:04:42.1]} 9. b5 {[%clk 0:04:39]} 9... a4 {[%clk 0:04:40]} 10.
O-O {[%clk 0:04:36.2]} 10... Ba5 {[%clk 0:04:38.3]} 11. Ne2 {[%clk 0:04:30.2]}
11... O-O {[%clk 0:04:35.7]} 12. Bg5 {[%clk 0:04:24.6]} 12... h6 {[%clk
0:04:33.5]} 13. Bh4 {[%clk 0:04:19.3]} 13... Qd6 {[%clk 0:04:03]} 14. Bxf6
{[%clk 0:04:16.1]} 14... gxf6 {[%clk 0:04:01.2]} 15. Ng3 {[%clk 0:04:08.6]}
15... Kh8 {[%clk 0:03:57.7]} 16. Qc1 {[%clk 0:04:05.7]} 16... Rg8 {[%clk
0:03:54.6]} 17. e4 {[%clk 0:04:04.6]} 17... Rg6 {[%clk 0:03:41.9]} 18. e5 {[%clk
0:04:03.4]} 18... fxe5 {[%clk 0:03:37.4]} 19. Bxg6 {[%clk 0:04:02.1]} 19... fxg6
{[%clk 0:03:30.2]} 20. Qxh6+ {[%clk 0:03:59.7]} 20... Kg8 {[%clk 0:03:28.7]} 21.
Nxe5 {[%clk 0:03:52.2]} 21... Nd7 {[%clk 0:03:16.1]} 22. Qxg6+ {[%clk
0:03:48.6]} 22... Kf8 {[%clk 0:03:14.2]} 23. Qf7# {[%clk 0:03:46.6]} 1-0

[Event "Live Chess"]
[Site "Chess.com"]
[Date "2024.06.01"]
[Round "-"]
[White "CarmelJane"]
[Black "Pandreq"]
[Result "1-0"]
[WhiteElo "2077"]
[BlackElo "1140"]
[TimeControl "300"]
[EndTime "12:43:26 PDT"]
[Termination "CarmelJane won by resignation"]

1. e4 {[%clk 0:04:58]} 1... Nf6 {[%clk 0:04:58.7]} 2. e5 {[%clk 0:04:54.9]} 2...
Nd5 {[%clk 0:04:57.2]} 3. d4 {[%clk 0:04:54.5]} 3... d6 {[%clk 0:04:55.7]} 4.
Nf3 {[%clk 0:04:51.8]} 4... Nc6 {[%clk 0:04:50.8]} 5. h3 {[%clk 0:04:36.9]} 5...
Bf5 {[%clk 0:04:43.1]} 6. a3 {[%clk 0:04:31.8]} 6... e6 {[%clk 0:04:35]} 7. Bb5
{[%clk 0:04:29.6]} 7... Ne7 {[%clk 0:04:30]} 8. O-O {[%clk 0:04:27.6]} 8... a6
{[%clk 0:04:28.7]} 9. Bd3 {[%clk 0:04:25.5]} 9... dxe5 {[%clk 0:04:21.6]} 10.
dxe5 {[%clk 0:04:18.6]} 10... Bxd3 {[%clk 0:04:17.9]} 11. cxd3 {[%clk
0:04:16.4]} 11... Nd4 {[%clk 0:04:03]} 12. Nc3 {[%clk 0:04:13.3]} 12... Nxf3+
{[%clk 0:03:56.2]} 13. Qxf3 {[%clk 0:04:12.3]} 13... Nc6 {[%clk 0:03:54.6]} 14.
Be3 {[%clk 0:04:06.9]} 14... Be7 {[%clk 0:03:36.6]} 15. d4 {[%clk 0:04:04.9]}
15... O-O {[%clk 0:03:34.8]} 16. Qg3 {[%clk 0:04:03.1]} 16... Kh8 {[%clk
0:03:16.5]} 17. Rad1 {[%clk 0:04:02.3]} 17... Bh4 {[%clk 0:03:10.5]} 18. Qg4
{[%clk 0:03:57.7]} 18... Rg8 {[%clk 0:02:44.4]} 19. Ne4 {[%clk 0:03:46.8]} 19...
Qe7 {[%clk 0:02:33.2]} 20. g3 {[%clk 0:03:39.3]} 20... Bxg3 {[%clk 0:02:24.3]}
21. fxg3 {[%clk 0:03:35.6]} 21... Rad8 {[%clk 0:02:18.6]} 22. Bg5 {[%clk
0:03:25.6]} 22... Qf8 {[%clk 0:02:06]} 23. Bxd8 {[%clk 0:03:22.5]} 23... Qxd8
{[%clk 0:02:05.9]} 24. Ng5 {[%clk 0:03:20]} 24... Qe7 {[%clk 0:02:01.4]} 25.
Nxf7+ {[%clk 0:03:18.5]} 1-0

[Event "Live Chess"]
[Site "Chess.com"]
[Date "2024.06.01"]
[Round "-"]
[White "IanCalvert2"]
[Black "Demyan7777"]
[Result "1-0"]
[WhiteElo "1576"]
[BlackElo "1799"]
[TimeControl "300"]
[EndTime "12:43:40 PDT"]
[Termination "IanCalvert2 won by checkmate"]

1. b3 {[%clk 0:04:57.1]} 1... e5 {[%clk 0:04:58.3]} 2. Bb2 {[%clk 0:04:55.9]}
2... Nc6 {[%clk 0:04:56.1]} 3. e3 {[%clk 0:04:54.7]} 3... d5 {[%clk 0:04:55.5]}
4. Bb5 {[%clk 0:04:52.3]} 4... Bd6 {[%clk 0:04:53.6]} 5. f4 {[%clk 0:04:50.2]}
5... Qe7 {[%clk 0:04:47.9]} 6. Nf3 {[%clk 0:04:47.6]} 6... f6 {[%clk 0:04:42.3]}
7. Nc3 {[%clk 0:04:42.2]} 7... Be6 {[%clk 0:04:38.5]} 8. O-O {[%clk 0:04:39.6]}
8... exf4 {[%clk 0:04:36.6]} 9. exf4 {[%clk 0:04:30.1]} 9... Bxf4 {[%clk
0:04:35.5]} 10. Nd4 {[%clk 0:04:22.5]} 10... Be5 {[%clk 0:04:08.6]} 11. Bxc6+
{[%clk 0:03:54.1]} 11... bxc6 {[%clk 0:04:05.4]} 12. Nxc6 {[%clk 0:03:52.3]}
12... Qc5+ {[%clk 0:04:04.7]} 13. d4 {[%clk 0:03:50]} 13... Qxc6 {[%clk
0:04:01.6]} 14. dxe5 {[%clk 0:03:48.3]} 14... fxe5 {[%clk 0:03:59.3]} 15. Qh5+
{[%clk 0:03:41.2]} 15... g6 {[%clk 0:03:58.1]} 16. Qxe5 {[%clk 0:03:37.8]} 16...
O-O-O {[%clk 0:03:53.1]} 17. Qxh8 {[%clk 0:03:29.8]} 17... d4 {[%clk 0:03:48.7]}
18. Na4 {[%clk 0:03:15.7]} 18... Qxc2 {[%clk 0:03:41.5]} 19. Rac1 {[%clk
0:02:38.6]} 19... Qe4 {[%clk 0:03:30.5]} 20. Rfe1 {[%clk 0:02:24.6]} 20... Qg4
{[%clk 0:03:23.9]} 21. Qe5 {[%clk 0:02:10]} 21... Rd6 {[%clk 0:03:22.7]} 22. Nc5
{[%clk 0:01:44.7]} 22... Bf7 {[%clk 0:03:09]} 23. Ne4 {[%clk 0:01:25.5]} 23...
Re6 {[%clk 0:03:05.2]} 24. Qxc7# {[%clk 0:01:18]} 1-0

[Event "Live Chess"]
[Site "Chess.com"]
[Date "2024.06.01"]
[Round "-"]
[White "Dhaydon19"]
[Black "FlyingChessKestrel13"]
[Result "1-0"]
[WhiteElo "2682"]
[BlackElo "2077"]
[TimeControl "300"]
[EndTime "12:43:42 PDT"]
[Termination "Dhaydon19 won by resignation"]

1. Nf3 {[%clk 0:04:58.1]} 1... d5 {[%clk 0:04:57.5]} 2. e3 {[%clk 0:04:57.7]}
2... c6 {[%clk 0:04:56.9]} 3. b3 {[%clk 0:04:57.3]} 3... Bf5 {[%clk 0:04:55.8]}
4. Bb2 {[%clk 0:04:57]} 4... e6 {[%clk 0:04:55.1]} 5. Be2 {[%clk 0:04:56]} 5...
Nf6 {[%clk 0:04:53.5]} 6. O-O {[%clk 0:04:54.4]} 6... Be7 {[%clk 0:04:52.1]} 7.
c4 {[%clk 0:04:54.1]} 7... O-O {[%clk 0:04:47.5]} 8. d4 {[%clk 0:04:53.7]} 8...
Nbd7 {[%clk 0:04:45.6]} 9. Nc3 {[%clk 0:04:53.3]} 9... h6 {[%clk 0:04:44.1]} 10.
Rc1 {[%clk 0:04:52.3]} 10... Ne4 {[%clk 0:04:42.5]} 11. Nxe4 {[%clk 0:04:50.1]}
11... Bxe4 {[%clk 0:04:41.4]} 12. Bd3 {[%clk 0:04:47.9]} 12... Bxd3 {[%clk
0:04:40.5]} 13. Qxd3 {[%clk 0:04:46.8]} 13... Nf6 {[%clk 0:04:39.6]} 14. Nd2
{[%clk 0:04:45.9]} 14... Qd7 {[%clk 0:04:35.4]} 15. h3 {[%clk 0:04:45]} 15...
Rfd8 {[%clk 0:04:31.9]} 16. Rfd1 {[%clk 0:04:43.3]} 16... dxc4 {[%clk
0:04:27.5]} 17. Nxc4 {[%clk 0:04:41.2]} 17... c5 {[%clk 0:04:24.7]} 18. Qe2
{[%clk 0:04:39.1]} 18... cxd4 {[%clk 0:04:23.2]} 19. Bxd4 {[%clk 0:04:37.5]}
19... Qe8 {[%clk 0:04:21.7]} 20. Qf3 {[%clk 0:04:34.5]} 20... b6 {[%clk
0:04:15.6]} 21. Ne5 {[%clk 0:04:32.5]} 21... Rac8 {[%clk 0:04:13.4]} 22. Nc6
{[%clk 0:04:29.9]} 22... Rxd4 {[%clk 0:03:30.9]} 23. Nxe7+ {[%clk 0:04:24.3]}
23... Qxe7 {[%clk 0:03:25.9]} 24. Rxc8+ {[%clk 0:04:22.2]} 1-0

[Event "Live Chess"]
[Site "Chess.com"]
[Date "2024.06.01"]
[Round "-"]
[White "Plato_77"]
[Black "Brooms1989"]
[Result "1-0"]
[WhiteElo "1339"]
[BlackElo "1085"]
[TimeControl "300"]
[EndTime "12:43:46 PDT"]
[Termination "Plato_77 won by resignation"]

1. e4 {[%clk 0:04:58.2]} 1... e5 {[%clk 0:04:56.7]} 2. Nf3 {[%clk 0:04:56.7]}
2... Nc6 {[%clk 0:04:55.2]} 3. Bc4 {[%clk 0:04:56.2]} 3... Nf6 {[%clk
0:04:53.7]} 4. d3 {[%clk 0:04:54.5]} 4... d5 {[%clk 0:04:47.6]} 5. exd5 {[%clk
0:04:53.2]} 5... Nxd5 {[%clk 0:04:47.4]} 6. O-O {[%clk 0:04:52.7]} 6... Nb6
{[%clk 0:04:45.1]} 7. Bb5 {[%clk 0:04:50.4]} 7... Bd6 {[%clk 0:04:38.8]} 8. Re1
{[%clk 0:04:48.5]} 8... O-O {[%clk 0:04:35.9]} 9. Bg5 {[%clk 0:04:44.2]} 9... f6
{[%clk 0:04:29.2]} 10. Bh4 {[%clk 0:04:43.4]} 10... Bg4 {[%clk 0:04:17.6]} 11.
h3 {[%clk 0:04:41.5]} 11... Bh5 {[%clk 0:04:15.8]} 12. Nbd2 {[%clk 0:04:39.8]}
12... Nd4 {[%clk 0:04:07.1]} 13. Bc4+ {[%clk 0:04:29.4]} 13... Nxc4 {[%clk
0:04:04.3]} 14. dxc4 {[%clk 0:04:29]} 14... Bg6 {[%clk 0:03:40.8]} 15. Nxd4
{[%clk 0:04:22.7]} 15... exd4 {[%clk 0:03:40.7]} 16. Qg4 {[%clk 0:04:03.7]}
16... c5 {[%clk 0:03:31.3]} 17. Ne4 {[%clk 0:03:40.4]} 17... Be7 {[%clk
0:03:18.4]} 18. Ng3 {[%clk 0:03:16.5]} 18... f5 {[%clk 0:02:20.7]} 19. Bxe7
{[%clk 0:03:11.7]} 19... fxg4 {[%clk 0:02:18.8]} 20. Bxd8 {[%clk 0:03:10.9]}
20... Raxd8 {[%clk 0:02:17.5]} 21. Re2 {[%clk 0:02:49.4]} 21... gxh3 {[%clk
0:02:09.7]} 22. gxh3 {[%clk 0:02:45.9]} 22... d3 {[%clk 0:02:02.7]} 23. cxd3
{[%clk 0:02:43.6]} 23... Bxd3 {[%clk 0:02:02.6]} 24. Re7 {[%clk 0:02:42.6]}
24... Rf7 {[%clk 0:01:57.1]} 25. Rae1 {[%clk 0:02:35.7]} 25... Bxc4 {[%clk
0:01:50.4]} 26. Re8+ {[%clk 0:02:15.4]} 26... Rxe8 {[%clk 0:01:47.4]} 27. Rxe8+
{[%clk 0:02:14.3]} 27... Rf8 {[%clk 0:01:46.6]} 28. Re7 {[%clk 0:02:13.7]} 28...
Rf7 {[%clk 0:01:44.9]} 29. Re8+ {[%clk 0:02:11]} 29... Rf8 {[%clk 0:01:44]} 30.
Re7 {[%clk 0:02:03.8]} 30... Bd5 {[%clk 0:01:36.8]} 31. Nh5 {[%clk 0:01:30.8]}
31... Rf7 {[%clk 0:01:22.1]} 32. Re8+ {[%clk 0:01:26.3]} 32... Rf8 {[%clk
0:01:19.6]} 33. Re7 {[%clk 0:01:25.9]} 33... Rf7 {[%clk 0:01:18.8]} 34. Re5
{[%clk 0:01:24.2]} 34... Bxa2 {[%clk 0:01:03.9]} 35. Rxc5 {[%clk 0:01:22.1]}
35... Be6 {[%clk 0:00:53.2]} 36. Re5 {[%clk 0:01:18.5]} 36... Bxh3 {[%clk
0:00:48.4]} 37. Re8+ {[%clk 0:01:16.1]} 37... Rf8 {[%clk 0:00:46.9]} 38. Re7
{[%clk 0:01:15.7]} 38... Bc8 {[%clk 0:00:41.5]} 39. Rxg7+ {[%clk 0:01:13.6]}
39... Kh8 {[%clk 0:00:40.3]} 40. Rc7 {[%clk 0:01:12.7]} 40... Kg8 {[%clk
0:00:32.3]} 41. Rg7+ {[%clk 0:01:10.1]} 41... Kh8 {[%clk 0:00:29.4]} 42. Re7
{[%clk 0:01:09.7]} 42... Kg8 {[%clk 0:00:28.3]} 43. Kf1 {[%clk 0:01:07.8]} 43...
Rf7 {[%clk 0:00:23.3]} 44. Re8+ {[%clk 0:01:06.7]} 44... Rf8 {[%clk 0:00:21.1]}
45. Re7 {[%clk 0:01:04.4]} 45... Rf7 {[%clk 0:00:19.6]} 46. Re8+ {[%clk
0:00:54]} 46... Rf8 {[%clk 0:00:17.4]} 47. Re3 {[%clk 0:00:53.6]} 47... Bg4
{[%clk 0:00:14.6]} 48. Rg3 {[%clk 0:00:48.8]} 1-0

[Event "Live Chess"]
[Site "Chess.com"]
[Date "2024.06.01"]
[Round "-"]
[White "febray_27"]
[Black "missedJariChance"]
[Result "1-0"]
[WhiteElo "2007"]
[BlackElo "1341"]
[TimeControl "300"]
[EndTime "12:44:06 PDT"]
[Termination "febray_27 won by resignation"]

1. Nf3 {[%clk 0:04:55.1]} 1... e6 {[%clk 0:04:56.8]} 2. d4 {[%clk 0:04:53.2]}
2... d5 {[%clk 0:04:55]} 3. g3 {[%clk 0:04:52.7]} 3... c5 {[%clk 0:04:49.3]} 4.
Bg2 {[%clk 0:04:51.6]} 4... Nc6 {[%clk 0:04:47.9]} 5. O-O {[%clk 0:04:49.3]}
5... Nf6 {[%clk 0:04:44.6]} 6. c4 {[%clk 0:04:48.1]} 6... cxd4 {[%clk
0:04:36.6]} 7. cxd5 {[%clk 0:04:46.6]} 7... Nxd5 {[%clk 0:04:34.7]} 8. Nxd4
{[%clk 0:04:45.3]} 8... Be7 {[%clk 0:04:30]} 9. Nxc6 {[%clk 0:04:43.1]} 9...
bxc6 {[%clk 0:04:27.7]} 10. Qc2 {[%clk 0:04:36.7]} 10... Qc7 {[%clk 0:04:24.5]}
11. Rd1 {[%clk 0:04:34.2]} 11... O-O {[%clk 0:04:22.6]} 12. Nc3 {[%clk
0:04:20.1]} 12... Bb7 {[%clk 0:04:14.4]} 13. Nxd5 {[%clk 0:04:14.5]} 13... exd5
{[%clk 0:04:12.2]} 14. Bxd5 {[%clk 0:04:10.3]} 14... Rad8 {[%clk 0:04:08.1]} 15.
Bg2 {[%clk 0:04:07.9]} 15... Rfe8 {[%clk 0:03:33.4]} 16. Bf4 {[%clk 0:04:06.2]}
16... Bd6 {[%clk 0:03:29.3]} 17. Bxd6 {[%clk 0:04:01.4]} 17... Rxd6 {[%clk
0:03:26.4]} 18. Rxd6 {[%clk 0:04:00.8]} 18... Qxd6 {[%clk 0:03:25.1]} 19. Rd1
{[%clk 0:03:59.9]} 19... Qc7 {[%clk 0:03:21.3]} 20. b4 {[%clk 0:03:58.2]} 20...
h6 {[%clk 0:03:10.4]} 21. b5 {[%clk 0:03:55.6]} 21... Qb6 {[%clk 0:03:03]} 22.
bxc6 {[%clk 0:03:52.6]} 22... Rc8 {[%clk 0:02:55.7]} 23. Rb1 {[%clk 0:03:26.4]}
23... Qc7 {[%clk 0:02:47]} 24. Rxb7 {[%clk 0:03:22.5]} 24... Qd8 {[%clk
0:02:39.9]} 1-0